fUST/lending_fUST_20250909
["ID","MTS","AMOUNT","RATE_DAILY","PERIOD"]
[384457786,1757425850408,-553.26,0.00014246,2]
[384457787,1757425850419,-480.0,0.00014246,2]
[384457788,1757425850429,-480.0,0.00014246,2]
[384457789,1757425850438,-538.67,0.00014246,2]
[384457790,1757425850447,-480.0,0.00014246,2]
[384457791,1757425850457,-782.71,0.00014246,2]
[384457792,1757425850467,-527.59,0.00014246,2]
[384457793,1757425850476,-480.0,0.00014246,2]
[384457794,1757425850486,-659.95,0.00014246,2]
[384457795,1757425850495,-480.0,0.00014246,2]
[384457796,1757425850504,-480.0,0.00014246,2]
[384457797,1757425850514,-480.0,0.00014246,2]
[384457798,1757425850523,-567.56,0.00014246,2]
[384457799,1757425850532,-480.0,0.00014246,2]
[384457800,1757425850552,-760.86,0.00014246,2]
[384457801,1757425850563,-480.0,0.00014246,2]
[384457802,1757425850572,-301.12005457,0.00014246,2]
[384457803,1757425850583,-480.0,0.00014246,2]
[384457804,1757425850592,-945.22,0.00014246,2]
[384457805,1757425850602,-480.0,0.00014246,2]
[384457806,1757425850611,-246.31802029,0.00014246,2]
[384457807,1757425850622,-447.21423207,0.00014246,2]
[384457808,1757425850633,-930.8,0.00014246,2]
[384457809,1757425850643,-480.0,0.00014246,2]
[384457810,1757425850653,-480.0,0.00014246,2]
[384457811,1757425850663,-480.0,0.00014246,2]
[384457812,1757425850672,-1068.62,0.00014246,2]
[384457813,1757425850682,-480.0,0.00014246,2]
[384457814,1757425850692,-539.02,0.00014246,2]
[384457815,1757425850701,-480.0,0.00014246,2]
[384457816,1757425850711,-480.0,0.00014246,2]
[384457817,1757425850721,-2146.48,0.00014246,2]
[384457818,1757425850730,-2082.23,0.00014246,2]
[384457819,1757425850740,-480.0,0.00014246,2]
[384457820,1757425850749,-480.0,0.00014246,2]
[384457821,1757425850759,-480.0,0.00014246,2]
[384457822,1757425850768,-3051.05,0.00014246,2]
[384457823,1757425850778,-705.78,0.00014246,2]
[384457824,1757425850787,-632.01,0.00014246,2]
[384457825,1757425850797,-480.0,0.00014246,2]
[384457826,1757425850807,-2705.35,0.00014246,2]
[384457827,1757425850816,-480.0,0.00014246,2]
[384457828,1757425850826,-480.0,0.00014246,2]
[384457829,1757425850836,-680.87,0.00014246,2]
[384457830,1757425850849,-685.22,0.00014246,2]
[384457831,1757425850859,-604.22,0.00014246,2]
[384457832,1757425850869,-480.0,0.00014246,2]
[384457833,1757425850878,-1386.71,0.00014246,2]
[384457834,1757425850888,-3096.85,0.00014246,2]
[384457835,1757425850898,-480.0,0.00014246,2]
[384457836,1757425850909,-648.36,0.00014246,2]
[384457837,1757425850918,-480.0,0.00014246,2]
[384457838,1757425850928,-1614.94,0.00014246,2]
[384457839,1757425850937,-829.57,0.00014246,2]
[384457840,1757425850947,-480.0,0.00014246,2]
[384457841,1757425850956,-506.82,0.00014246,2]
[384457842,1757425850966,-835.71,0.00014246,2]
[384457843,1757425850976,-480.0,0.00014246,2]
[384457844,1757425850985,-480.0,0.00014246,2]
[384457845,1757425850995,-791.03,0.00014246,2]
[384457846,1757425851004,-165.51629064,0.00014246,2]
[384457847,1757425851015,-500.0,0.00014246,2]
[384457848,1757425851029,-480.0,0.00014246,2]
[384457849,1757425851038,-1724.16,0.00014246,2]
[384457850,1757425851048,-480.0,0.00014246,2]
[384457851,1757425851058,-480.0,0.00014246,2]
[384457852,1757425851069,-1039.46,0.00014246,2]
[384457853,1757425851079,-803.21,0.00014246,2]
[384457854,1757425851089,-480.0,0.00014246,2]
[384457855,1757425851099,-480.0,0.00014246,2]
[384457856,1757425851113,-480.0,0.00014246,2]
[384457857,1757425851123,-2581.42,0.00014246,2]
[384457858,1757425851133,-880.11,0.00014246,2]
[384457859,1757425851143,-7963.64,0.00014246,2]
[384457860,1757425851152,-707.25,0.00014246,2]
[384457861,1757425851162,-587.78,0.00014246,2]
[384457862,1757425851172,-480.0,0.00014246,2]
[384457863,1757425851182,-480.0,0.00014246,2]
[384457864,1757425851191,-480.0,0.00014246,2]
[384457865,1757425851201,-480.0,0.00014246,2]
[384457866,1757425851211,-480.0,0.00014246,2]
[384457867,1757425851221,-480.0,0.00014246,2]
[384457868,1757425851230,-1056.18,0.00014246,2]
[384457869,1757425851240,-1207.61,0.00014246,2]
[384457870,1757425851249,-854.22,0.00014246,2]
[384457871,1757425851258,-700.41,0.00014246,2]
[384457872,1757425851267,-518.39,0.00014246,2]
[384457873,1757425851277,-1002.33,0.00014246,2]
[384457874,1757425851287,-2178.24,0.00014246,2]
[384457875,1757425851297,-1093.22,0.00014246,2]
[384457876,1757425851306,-620.45,0.00014246,2]
[384457877,1757425851315,-2956.82,0.00014246,2]
[384457878,1757425851325,-1032.9,0.00014246,2]
[384457879,1757425851336,-1029.14,0.00014246,2]
[384457880,1757425851346,-480.0,0.00014246,2]
[384457881,1757425851355,-3858.79,0.00014246,2]
[384457882,1757425851365,-546.97,0.00014246,2]
[384457883,1757425851375,-5150.25,0.00014246,2]
[384457884,1757425851384,-1401.2,0.00014246,2]
[384457885,1757425851394,-480.0,0.00014246,2]
[384457886,1757425851403,-1828.58,0.00014246,2]
[384457887,1757425851413,-480.0,0.00014246,2]
[384457888,1757425851422,-1043.26,0.00014246,2]
[384457889,1757425851431,-442.64764697,0.00014246,2]
[384457890,1757425851441,-221.28296193,0.00014246,2]
[384457891,1757425851451,-157.0,0.00014246,2]
[384457892,1757425851460,-500.0,0.00014246,2]
[384457893,1757425851469,-500.0,0.00014246,2]
[384457894,1757425851479,-4693.33,0.00014246,2]
[384457895,1757425851489,-480.0,0.00014246,2]
[384457896,1757425851499,-492.95,0.00014246,2]
[384457897,1757425851508,-480.0,0.00014246,2]
[384457898,1757425851518,-480.0,0.00014246,2]
[384457899,1757425851528,-480.0,0.00014246,2]
[384457900,1757425851538,-480.0,0.00014246,2]
[384457901,1757425851547,-1141.59,0.00014246,2]
[384457902,1757425851557,-913.31,0.00014246,2]
[384457903,1757425851567,-22382.08,0.00014246,2]
[384457904,1757425851576,-480.0,0.00014246,2]
[384457905,1757425851587,-500.0,0.00014273,2]
[384457906,1757425851597,-3686.74,0.00014373,2]
[384457907,1757425851607,-620.5471961,0.00014473,2]
[384457908,1757425851616,-500.0,0.00014473,2]
[384457909,1757425851626,-274.38838764,0.00014473,2]
[384457910,1757425851636,-500.0,0.00014473,2]
[384457911,1757425851645,-500.0,0.00014473,2]
[384457912,1757425851655,-500.0,0.00014473,2]
[384457913,1757425851665,-500.0,0.00014473,2]
[384457914,1757425851675,-1488.4753292,0.00014487,2]
[384457915,1757425851684,-6706.1387598,0.00014487,2]
[384457916,1757425851694,-2409.2999674,0.00014487,2]
[384457917,1757425851704,-526.68,0.00014487,2]
[384457918,1757425851713,-191819.19231424,0.000145,2]
[384457919,1757425851723,-526.68,0.00014502,2]
[384457920,1757425851733,-274.01875176,0.00014508,2]
[384457921,1757425851743,-526.66,0.00014516,2]
[384457922,1757425851752,-500.0,0.0001452,2]
[384457923,1757425851762,-500.0,0.0001452,2]
[384457924,1757425851771,-157.0,0.0001452,2]
[384457925,1757425851781,-157.0,0.0001452,2]
[384457926,1757425851790,-157.0,0.0001452,2]
[384457927,1757425851800,-500.0,0.0001452,2]
[384457928,1757425851809,-252.02109809,0.0001452,2]
[384457929,1757425851819,-500.0,0.0001452,2]
[384457930,1757425851830,-500.0,0.0001452,2]
[384457931,1757425851840,-480.0,0.0001452,2]
[384457932,1757425851850,-480.0,0.0001452,2]
[384457933,1757425851859,-480.0,0.0001452,2]
[384457934,1757425851869,-480.0,0.0001452,2]
[384457935,1757425851879,-695.16,0.0001452,2]
[384457936,1757425851889,-480.0,0.0001452,2]
[384457937,1757425851899,-480.0,0.0001452,2]
[384457938,1757425851909,-349.63446632,0.0001452,2]
[384457939,1757425851918,-480.0,0.0001452,2]
[384457940,1757425851932,-480.0,0.0001452,2]
[384457941,1757425851942,-480.0,0.0001452,2]
[384457942,1757425851951,-649.28,0.0001452,2]
[384457943,1757425851960,-480.0,0.0001452,2]
[384457944,1757425851970,-427.70826839,0.0001452,2]
[384457945,1757425851979,-480.0,0.0001452,2]
[384457946,1757425851989,-264.79228247,0.0001452,2]
[384457947,1757425851998,-1424.53,0.0001452,2]
[384457948,1757425852008,-537.68,0.0001452,2]
[384457949,1757425852018,-480.0,0.0001452,2]
[384457950,1757425852033,-480.0,0.0001452,2]
[384457951,1757425852043,-480.0,0.0001452,2]
[384457952,1757425852053,-779.61,0.0001452,2]
[384457953,1757425852065,-480.0,0.0001452,2]
[384457954,1757425852076,-480.0,0.0001452,2]
[384457955,1757425852087,-860.85,0.0001452,2]
[384457956,1757425852096,-885.25,0.0001452,2]
[384457957,1757425852107,-706.34,0.0001452,2]
[384457958,1757425852116,-480.0,0.0001452,2]
[384457959,1757425852126,-480.0,0.0001452,2]
[384457960,1757425852136,-1604.11,0.0001452,2]
[384457961,1757425852145,-480.0,0.0001452,2]
[384457962,1757425852155,-480.0,0.0001452,2]
[384457963,1757425852165,-480.0,0.0001452,2]
[384457964,1757425852175,-615.18,0.0001452,2]
[384457965,1757425852185,-480.0,0.0001452,2]
[384457966,1757425852194,-480.0,0.0001452,2]
[384457967,1757425852205,-480.0,0.0001452,2]
[384457968,1757425852214,-480.0,0.0001452,2]
[384457969,1757425852224,-480.0,0.0001452,2]
[384457970,1757425852234,-480.0,0.0001452,2]
[384457971,1757425852244,-194.26410734,0.0001452,2]
[384457972,1757425852254,-480.0,0.0001452,2]
[384457973,1757425852264,-318.02838127,0.0001452,2]
[384457974,1757425852273,-480.0,0.0001452,2]
[384457975,1757425852283,-480.0,0.0001452,2]
[384457976,1757425852293,-480.0,0.0001452,2]
[384457977,1757425852302,-480.0,0.0001452,2]
[384457978,1757425852312,-405.65358611,0.0001452,2]
[384457979,1757425852322,-802.39,0.0001452,2]
[384457980,1757425852332,-480.0,0.0001452,2]
[384457981,1757425852343,-480.0,0.0001452,2]
[384457982,1757425852352,-480.0,0.0001452,2]
[384457983,1757425852361,-777.5,0.0001452,2]
[384457984,1757425852371,-480.0,0.0001452,2]
[384457985,1757425852381,-211.66165577,0.0001452,2]
[384457986,1757425852392,-480.0,0.0001452,2]
[384457987,1757425852525,-480.0,0.0001452,2]
[384457988,1757425852535,-814.12,0.0001452,2]
[384457989,1757425852544,-294.00452838,0.0001452,2]
[384457990,1757425852554,-553.26,0.0001452,2]
[384457991,1757425852563,-480.0,0.0001452,2]
[384457992,1757425852572,-480.0,0.0001452,2]
[384457993,1757425852581,-480.0,0.0001452,2]
[384457994,1757425852591,-782.71,0.0001452,2]
[384457995,1757425852601,-527.59,0.0001452,2]
[384457996,1757425852610,-480.0,0.0001452,2]
[384457997,1757425852619,-659.95,0.0001452,2]
[384457998,1757425852628,-504.56503127,0.0001452,2]
[384457999,1757425852638,-480.0,0.0001452,2]
[384458000,1757425852647,-480.0,0.0001452,2]
[384458001,1757425852656,-567.56,0.0001452,2]
[384458002,1757425852666,-480.0,0.0001452,2]
[384458003,1757425852675,-760.86,0.0001452,2]
[384458004,1757425852684,-291.08382134,0.0001452,2]
[384458005,1757425852694,-480.0,0.0001452,2]
[384458006,1757425852703,-945.22,0.0001452,2]
[384458007,1757425852712,-480.0,0.0001452,2]
[384458008,1757425852721,-930.8,0.0001452,2]
[384458009,1757425852730,-480.0,0.0001452,2]
[384458010,1757425852740,-501.19126606,0.0001452,2]
[384458011,1757425852749,-480.0,0.0001452,2]
[384458012,1757425852759,-1068.62,0.0001452,2]
[384458013,1757425852768,-480.0,0.0001452,2]
[384458014,1757425852777,-539.02,0.0001452,2]
[384458015,1757425852786,-480.0,0.0001452,2]
[384458016,1757425852795,-480.0,0.0001452,2]
[384458017,1757425852805,-2146.48,0.0001452,2]
[384458018,1757425852814,-2082.23,0.0001452,2]
[384458019,1757425852825,-480.0,0.0001452,2]
[384458020,1757425852836,-218.00760161,0.0001452,2]
[384458021,1757425852846,-480.0,0.0001452,2]
[384458022,1757425852854,-3051.05,0.0001452,2]
[384458023,1757425852864,-705.78,0.0001452,2]
[384458024,1757425852873,-632.01,0.0001452,2]
[384458025,1757425852882,-2705.35,0.0001452,2]
[384458026,1757425852892,-480.0,0.0001452,2]
[384458027,1757425852902,-480.0,0.0001452,2]
[384458028,1757425852911,-480.0,0.0001452,2]
[384458029,1757425852921,-680.87,0.0001452,2]
[384458030,1757425852930,-685.22,0.0001452,2]
[384458031,1757425852939,-604.22,0.0001452,2]
[384458032,1757425852948,-480.0,0.0001452,2]
[384458033,1757425852958,-1386.71,0.0001452,2]
[384458034,1757425852967,-3096.85,0.0001452,2]
[384458035,1757425852976,-480.0,0.0001452,2]
[384458036,1757425852986,-648.36,0.0001452,2]
[384458037,1757425852996,-480.0,0.0001452,2]
[384458038,1757425853005,-1614.94,0.0001452,2]
[384458039,1757425853014,-829.57,0.0001452,2]
[384458040,1757425853028,-480.0,0.0001452,2]
[384458041,1757425853038,-506.82,0.0001452,2]
[384458042,1757425853047,-835.71,0.0001452,2]
[384458043,1757425853057,-480.0,0.0001452,2]
[384458044,1757425853067,-480.0,0.0001452,2]
[384458045,1757425853076,-791.03,0.0001452,2]
[384458046,1757425853087,-1724.16,0.0001452,2]
[384458047,1757425853100,-480.0,0.0001452,2]
[384458048,1757425853110,-480.0,0.0001452,2]
[384458049,1757425853119,-480.0,0.0001452,2]
[384458050,1757425853129,-1039.46,0.0001452,2]
[384458051,1757425853137,-803.21,0.0001452,2]
[384458052,1757425853146,-480.0,0.0001452,2]
[384458053,1757425853155,-480.0,0.0001452,2]
[384458054,1757425853164,-480.0,0.0001452,2]
[384458055,1757425853173,-2581.42,0.0001452,2]
[384458056,1757425853182,-880.11,0.0001452,2]
[384458057,1757425853192,-7963.64,0.0001452,2]
[384458058,1757425853201,-707.25,0.0001452,2]
[384458059,1757425853211,-587.78,0.0001452,2]
[384458060,1757425853220,-480.0,0.0001452,2]
[384458061,1757425853229,-480.0,0.0001452,2]
[384458062,1757425853239,-480.0,0.0001452,2]
[384458063,1757425853248,-480.0,0.0001452,2]
[384458064,1757425853257,-311.37,0.0001452,2]
[384458065,1757425853267,-480.0,0.0001452,2]
[384458066,1757425853276,-1056.18,0.0001452,2]
[384458067,1757425853285,-1207.61,0.0001452,2]
[384458068,1757425853295,-854.22,0.0001452,2]
[384458069,1757425853305,-700.41,0.0001452,2]
[384458070,1757425853315,-518.39,0.0001452,2]
[384458071,1757425853324,-1002.33,0.0001452,2]
[384458072,1757425853336,-2178.24,0.0001452,2]
[384458073,1757425853346,-1093.22,0.0001452,2]
[384458074,1757425853355,-620.45,0.0001452,2]
[384458075,1757425853364,-2956.82,0.0001452,2]
[384458076,1757425853374,-1032.9,0.0001452,2]
[384458077,1757425853383,-1029.14,0.0001452,2]
[384458078,1757425853393,-480.0,0.0001452,2]
[384458079,1757425853403,-3858.79,0.0001452,2]
[384458080,1757425853412,-546.97,0.0001452,2]
[384458081,1757425853421,-5150.25,0.0001452,2]
[384458082,1757425853430,-1401.2,0.0001452,2]
[384458083,1757425853440,-480.0,0.0001452,2]
[384458084,1757425853450,-1828.58,0.0001452,2]
[384458085,1757425853459,-480.0,0.0001452,2]
[384458086,1757425853469,-1043.26,0.0001452,2]
[384458087,1757425853478,-4693.33,0.0001452,2]
[384458088,1757425853487,-480.0,0.0001452,2]
[384458089,1757425853497,-492.95,0.0001452,2]
[384458090,1757425853506,-480.0,0.0001452,2]
[384458091,1757425853516,-615.36330939,0.0001452,2]
[384458092,1757425853526,-480.0,0.0001452,2]
[384458093,1757425853536,-384.79152012,0.0001452,2]
[384458094,1757425853545,-1141.59,0.0001452,2]
[384458095,1757425853555,-913.31,0.0001452,2]
[384458096,1757425853565,-22382.08,0.0001452,2]
[384458097,1757425853574,-480.0,0.0001452,2]
[384458098,1757425853585,-1000.0,0.00014521,2]
[384458099,1757425853594,-500.0,0.00014521,2]
[384458100,1757425853603,-1000.0,0.00014521,2]
[384458101,1757425853613,-1000.0,0.00014521,2]
[384458102,1757425853622,-1000.0,0.00014521,2]
[384458103,1757425853632,-1000.0,0.00014521,2]
[384458104,1757425853642,-1000.0,0.00014521,2]
[384458105,1757425853651,-1000.0,0.00014521,2]
[384458106,1757425853661,-1300.0,0.000146,3]
[384458107,1757425853671,-1300.0000005,0.000147,2]
[384458108,1757425853680,-500.0,0.00014794,2]
[384458109,1757425853689,-500.0,0.00014794,2]
[384458110,1757425853698,-226.69792871,0.00014794,2]
[384458111,1757425853708,-157.0,0.00014794,2]
[384458112,1757425853717,-157.0,0.00014794,2]
[384458113,1757425853726,-500.0,0.00014794,2]
[384458114,1757425853736,-500.0,0.00014794,2]
[384458115,1757425853748,-500.0,0.00014794,2]
[384458116,1757425853757,-480.0,0.00014794,2]
[384458117,1757425853767,-480.0,0.00014794,2]
[384458118,1757425853777,-480.0,0.00014794,2]
[384458119,1757425853787,-480.0,0.00014794,2]
[384458120,1757425853796,-695.16,0.00014794,2]
[384458121,1757425853806,-480.0,0.00014794,2]
[384458122,1757425853816,-480.0,0.00014794,2]
[384458123,1757425853826,-480.0,0.00014794,2]
[384458124,1757425853838,-480.0,0.00014794,2]
[384458125,1757425853848,-480.0,0.00014794,2]
[384458126,1757425853858,-649.28,0.00014794,2]
[384458127,1757425853867,-480.0,0.00014794,2]
[384458128,1757425853877,-480.0,0.00014794,2]
[384458129,1757425853887,-1424.53,0.00014794,2]
[384458130,1757425853896,-537.68,0.00014794,2]
[384458131,1757425853907,-422.11,0.00014794,2]
[384458132,1757425853917,-480.0,0.00014794,2]
[384458133,1757425853926,-480.0,0.00014794,2]
[384458134,1757425853936,-779.61,0.00014794,2]
[384458135,1757425853945,-480.0,0.00014794,2]
[384458136,1757425853955,-480.0,0.00014794,2]
[384458137,1757425853964,-860.85,0.00014794,2]
[384458138,1757425853973,-885.25,0.00014794,2]
[384458139,1757425853983,-706.34,0.00014794,2]
[384458140,1757425853992,-480.0,0.00014794,2]
[384458141,1757425854001,-480.0,0.00014794,2]
[384458142,1757425854010,-1604.11,0.00014794,2]
[384458143,1757425854022,-480.0,0.00014794,2]
[384458144,1757425854032,-480.0,0.00014794,2]
[384458145,1757425854041,-480.0,0.00014794,2]
[384458146,1757425854051,-480.0,0.00014794,2]
[384458147,1757425854060,-480.0,0.00014794,2]
[384458148,1757425854071,-480.0,0.00014794,2]
[384458149,1757425854082,-181.12,0.00014794,2]
[384458150,1757425854091,-480.0,0.00014794,2]
[384458151,1757425854101,-480.0,0.00014794,2]
[384458152,1757425854111,-480.0,0.00014794,2]
[384458153,1757425854121,-480.0,0.00014794,2]
[384458154,1757425854137,-480.0,0.00014794,2]
[384458155,1757425854147,-802.39,0.00014794,2]
[384458156,1757425854156,-480.0,0.00014794,2]
[384458157,1757425854166,-480.0,0.00014794,2]
[384458158,1757425854175,-777.5,0.00014794,2]
[384458159,1757425854185,-480.0,0.00014794,2]
[384458160,1757425854194,-480.0,0.00014794,2]
[384458161,1757425854203,-480.0,0.00014794,2]
[384458162,1757425854213,-814.12,0.00014794,2]
[384458163,1757425854222,-553.26,0.00014794,2]
[384458164,1757425854232,-480.0,0.00014794,2]
[384458165,1757425854242,-480.0,0.00014794,2]
[384458166,1757425854251,-480.0,0.00014794,2]
[384458167,1757425854260,-782.71,0.00014794,2]
[384458168,1757425854269,-527.59,0.00014794,2]
[384458169,1757425854278,-480.0,0.00014794,2]
[384458170,1757425854288,-659.95,0.00014794,2]
[384458171,1757425854307,-397.26385889,0.00014794,2]
[384458172,1757425854317,-480.0,0.00014794,2]
[384458173,1757425854327,-567.56,0.00014794,2]
[384458174,1757425854338,-480.0,0.00014794,2]
[384458175,1757425854348,-760.86,0.00014794,2]
[384458176,1757425854358,-480.0,0.00014794,2]
[384458177,1757425854368,-945.22,0.00014794,2]
[384458178,1757425854377,-480.0,0.00014794,2]
[384458179,1757425854387,-930.8,0.00014794,2]
[384458180,1757425854397,-480.0,0.00014794,2]
[384458181,1757425854407,-480.0,0.00014794,2]
[384458182,1757425854417,-1068.62,0.00014794,2]
[384458183,1757425854427,-480.0,0.00014794,2]
[384458184,1757425854436,-539.02,0.00014794,2]
[384458185,1757425854447,-480.0,0.00014794,2]
[384458186,1757425854456,-480.0,0.00014794,2]
[384458187,1757425854466,-2146.48,0.00014794,2]
[384458188,1757425854475,-2082.23,0.00014794,2]
[384458189,1757425854485,-480.0,0.00014794,2]
[384458190,1757425854494,-480.0,0.00014794,2]
[384458191,1757425854503,-3051.05,0.00014794,2]
[384458192,1757425854513,-705.78,0.00014794,2]
[384458193,1757425854522,-632.01,0.00014794,2]
[384458194,1757425854531,-2705.35,0.00014794,2]
[384458195,1757425854541,-480.0,0.00014794,2]
[384458196,1757425854551,-480.0,0.00014794,2]
[384458197,1757425854560,-480.0,0.00014794,2]
[384458198,1757425854569,-680.87,0.00014794,2]
[384458199,1757425854578,-667.71456292,0.00014794,2]
[384462744,1757425903056,1000.0,0.00018593,20]
[384462948,1757425984489,170.76683118,0.00028824,120]
[384462950,1757425994610,302.0311356,0.00028824,60]
[384462955,1757426007825,169.55,0.00024,120]
[384462973,1757426037653,500.0,0.00013173,2]
[384462978,1757426042649,500.0,0.00013173,2]
[384462981,1757426047685,224.30404962,0.00013173,2]
[384462987,1757426070878,200.0,0.00025203,120]
[384462988,1757426086229,1000.0,0.00024657,120]
[384462989,1757426086710,1000.0,0.00024657,120]
[384462990,1757426086997,1000.0,0.00024657,120]
[384462991,1757426087330,1000.0,0.00024657,120]
[384462992,1757426087618,1000.0,0.00024657,120]
[384462993,1757426087852,1000.0,0.00024657,120]
[384462994,1757426088145,1000.0,0.00024657,120]
[384462995,1757426088324,189.6,0.0002191,120]
[384462996,1757426088497,1000.0,0.00024657,120]
[384462997,1757426088758,1000.0,0.00024657,120]
[384462998,1757426089117,460.8841541,0.00024657,120]
[384463001,1757426159129,158.085383,0.00013056,2]
[384463002,1757426160135,158.085383,0.00013188,2]
[384463003,1757426170034,500.0,0.00028766,60]
[384463004,1757426170307,500.0,0.00028766,60]
[384463005,1757426170536,500.0,0.00028766,60]
[384463006,1757426170952,500.0,0.00028766,60]
[384463007,1757426171135,500.0,0.00028766,60]
[384463008,1757426171377,500.0,0.00028766,60]
[384463009,1757426171972,500.0,0.00028766,60]
[384463010,1757426172391,383.316658,0.00028766,60]
[384463013,1757426191144,200.0,0.00024156,120]
[384463018,1757426235282,1210.48970991,0.00013325,2]
[384463020,1757426251089,200.0,0.00026318,120]
[384463038,1757426311333,181.700092,0.00012773,2]
[384463039,1757426328792,166.14,0.0002191,120]
[384463046,1757426422533,334.53392,0.00027,120]
[384463047,1757426430914,200.0,0.00024234,120]
[384463048,1757426435116,200.0,0.00027,120]
[384463054,1757426551231,200.0,0.00027283,120]
[384463065,1757426644971,762.25503861,0.00013326,2]
[384463071,1757426699916,1000.0,0.00028777,120]
[384463072,1757426700216,1000.0,0.00028777,120]
[384463073,1757426700524,1000.0,0.00028777,120]
[384463074,1757426700773,1000.0,0.00028777,120]
[384463075,1757426701299,1000.0,0.00028777,120]
[384463076,1757426701384,1000.0,0.00028777,120]
[384463077,1757426701676,1000.0,0.00028777,120]
[384463078,1757426701943,1000.0,0.00028777,120]
[384463079,1757426704384,1000.0,0.00028777,120]
[384463080,1757426705004,1000.0,0.00028777,120]
[384463081,1757426705314,1000.0,0.00028777,120]
[384463082,1757426705570,1000.0,0.00028777,120]
[384463083,1757426706078,1000.0,0.00028777,120]
[384463084,1757426706354,1000.0,0.00028777,120]
[384463085,1757426706645,1000.0,0.00028777,120]
[384463086,1757426706909,1000.0,0.00028777,120]
[384463087,1757426707199,1000.0,0.00028777,120]
[384463088,1757426707497,1000.0,0.00028777,120]
[384463089,1757426707800,1000.0,0.00028777,120]
[384463090,1757426708103,1000.0,0.00028777,120]
[384463091,1757426708389,519.50309927,0.00028777,120]
[384463094,1757426724191,500.0,0.00028777,60]
[384463095,1757426724443,500.0,0.00028777,60]
[384463096,1757426724711,500.0,0.00028777,60]
[384463097,1757426725005,500.0,0.00028777,60]
[384463098,1757426725325,500.0,0.00028777,60]
[384463099,1757426725557,295.52,0.00028777,60]
[384463101,1757426787970,100000.0,0.0002739,120]
[384463411,1757427032680,-1200.0,0.00013459,2]
[384463413,1757427032689,-300.0,0.00013459,2]
[384463415,1757427032698,-300.0,0.00013459,2]
[384463418,1757427032708,-300.0,0.00013459,2]
[384463419,1757427032717,-1200.0,0.00013459,2]
[384463421,1757427032727,-300.0,0.00013459,2]
[384463423,1757427032736,-300.0,0.00013459,2]
[384463425,1757427032746,-21122.62105865,0.00013461,2]
[384463427,1757427032755,-1210.48970991,0.0001359,2]
[384463429,1757427032765,-194.23303301,0.0001359,2]
[384463431,1757427032777,-1411.90799218,0.00013598,2]
[384463433,1757427032787,-1411.90799214,0.00013672,2]
[384463435,1757427032797,-151.0,0.0001369,2]
[384463437,1757427032806,-500.0,0.0001369,2]
[384463439,1757427032816,-500.0,0.0001369,2]
[384463441,1757427032825,-500.0,0.0001369,2]
[384463444,1757427032835,-500.0,0.0001369,2]
[384463445,1757427032844,-500.0,0.0001369,2]
[384463447,1757427032854,-2030.29667201,0.0001369,2]